Cogmind - Beta 12 @@@ ROGUE MODE // 2023.09.19 @ 01:46:44 // Winter2019/RPGLIKE Player: Roadie Result: Destroyed by Y-54 Guardian with Gatling Laser Performance ------------- Evolutions (3) 1500 Regions Visited (7) 1400 Robots Destroyed (177) 885 Value Destroyed (5771) 5771 Prototype IDs (25) 500 Alien Tech Used (0) 0 Bonus (1899) 1899 TOTAL SCORE: 11955 Bonus ------- High Alert Combat Kills 1174 Follower Combat Kills 630 Entered Garrisons 200 Friendly Fire -105 Cogmind --------- Core Integrity 0/1000 Matter 300/300 Energy 270/270 System Corruption 0% Temperature Cool (12) Movement Rolling (125) Location -7/Garrison Parts ------- > --- POWER (2) -------- Multi-Nuclear Core > --- PROPULSION (4) --- Wheeled Compact-Aerolev Exoskeleton > --- UTILITY (7) ------ Armored Scrap Engine Improved Sensor Array Particle Charger ECM Suite Hacking Suite System Shield > --- WEAPON (5) ------- Improved Remote Datajack Ballistic Autogun Construct/G Hpw. EM Shock Construct/G Cycling Kinetic Autogun Construct/G Hpw. Electro Tesla Construct/G > --- INVENTORY (2) ---- Target Analyzer Relay Coupler [Brawler] (44) Peak State ------------ > --- POWER ------------ Multi-Nuclear Core > --- PROPULSION ------- Wheeled Compact-Aerolev Exoskeleton > --- UTILITY ---------- Armored Scrap Engine Improved Sensor Array ECM Suite Hacking Suite System Shield System Restoration Module > --- WEAPON ----------- Improved Remote Datajack Ballistic Autogun Construct/G Hpw. EM Shock Construct/G Cycling Kinetic Autogun Construct/G Hpw. Electro Tesla Construct/G > --- INVENTORY -------- Particle Charger Relay Coupler [Brawler] [Rating: 71] Favorites ----------- Power Constructs Engine Ion Engine Power Core Constructs Reactor Mini Fusion Reactor Propulsion Improved Treads Treads Improved Treads Wheel Constructs Utility Signal Interpreter Device Armored Scrap Engine Storage High-capacity Matter Pod Processor Signal Interpreter Hackware Hacking Suite Protection Hardened Light Armor Plating Weapon Precision Beam Rifle Energy Gun Precision Beam Rifle Ballistic Gun Constructs Launcher Rocket Launcher Special Weapon Remote Datajack Build | -11 -10 -10 -9 -9 -9 -7 -7 ------- Run | Jun Mat Min Mat Sto Rec Fac Gar Slots Evolved 14 | 2 . 1 5 1 1 4 . Power 1 | . . . 1 . . . . Propulsion 3 | 1 . . . . . 2 . Utility 6 | . . 1 2 1 1 1 . Weapon 4 | 1 . . 2 . . 1 . Parts Attached 64 | 5 7 3 28 4 2 15 . Power 11 | 1 1 1 7 1 . . . Engine 10 | 1 1 1 7 . . . . Core . | . . . . . . . . Reactor 1 | . . . . 1 . . . Propulsion 7 | 2 3 . 2 . . . . Treads 7 | 2 3 . 2 . . . . Leg . | . . . . . . . . Wheel . | . . . . . . . . Hover . | . . . . . . . . Flight . | . . . . . . . . Utility 22 | . 1 1 5 3 2 10 . Device 16 | . . 1 3 2 2 8 . Storage 1 | . . . . 1 . . . Processor 2 | . 1 . . . . 1 . Hackware 2 | . . . 1 . . 1 . Protection 1 | . . . 1 . . . . Artifact . | . . . . . . . . Weapon 24 | 2 2 1 14 . . 5 . Energy Gun 9 | . 1 . 7 . . 1 . Energy Cannon . | . . . . . . . . Ballistic Gun 11 | 2 1 1 7 . . . . Ballistic Cannon . | . . . . . . . . Launcher 1 | . . . . . . 1 . Special Weapon 3 | . . . . . . 3 . Impact Weapon . | . . . . . . . . Slashing Weapon . | . . . . . . . . Piercing Weapon . | . . . . . . . . Special Melee Weapon . | . . . . . . . . Unidentified Prototypes 3 | . . . 1 1 . 1 . Parts Lost . | . . . . . . . . Power . | . . . . . . . . Propulsion . | . . . . . . . . Utility . | . . . . . . . . Weapon . | . . . . . . . . Highest Loss Streak . | . . . . . . . . To Critical Strikes . | . . . . . . . . Average Slot Usage (%) 87 | . 96 99 97 95 80 78 72 Engine 9 | . 16 15 16 9 6 3 . Core 1 | . . . . . . 2 5 Reactor 2 | . . . . 5 7 2 . Treads 11 | . 32 31 17 15 7 . . Wheel 1 | . . . . . 2 1 5 Hover 1 | . . . . . . 4 . Device 14 | . . 3 8 16 19 20 22 Processor 7 | . 13 15 9 7 7 4 . Hackware 7 | . . . 8 7 7 10 11 Energy Gun 10 | . 13 15 9 30 15 3 11 Ballistic Gun 15 | . 19 15 22 . 6 18 11 Special Weapon 1 | . . . . . . 2 5 Naked Turns . | . . . . . . . . Heaviest Build 48 | 7 9 11 32 28 23 48 42 Greatest Support 51 | 40 46 46 46 46 47 51 51 Greatest Overweight (x) 2 | . . . . . 1 2 . Average Overweight (x) . | . . . . . . . . Largest Inventory Capacity 2 | . . . . 2 2 2 2 Average Capacity 1 | . . . . 1 2 2 2 Most Carried 2 | . . . . 2 2 2 2 Average Carried . | . . . . 1 1 1 2 Final Capacity 2 | . . . . 2 2 2 2 Final Carried 2 | . . . . 2 1 2 2 Scrap Engine Consumption 114 | . . . . . 35 79 . Constructs Created 6 | . . . . . 3 3 . Constructs Modified 33 | . . . . . 7 26 . Class Distribution -------------------- 37% | Hacker-Construct 13% | Hacker-Skirmisher 10% | Scavenger-Mutant 10% | Scavenger-Skirmisher 9% | Mutant 6% | Hacker-Tank 5% | Commander-Tank 5% | Scavenger-Gunner Dominant Class ---------------- Mutant | -10/Materials Scavenger-Mutant | -10/Mines Scavenger-Skirmisher | -9/Materials Commander-Tank | -9/Storage Hacker-Skirmisher | -9/Recycling Hacker-Construct | -7/Factory Hacker-Construct | -7/Garrison Resources | -11 -10 -10 -9 -9 -9 -7 -7 ----------- Run | Jun Mat Min Mat Sto Rec Fac Gar Matter Collected 3716 | 250 150 166 735 314 53 2048 . Remotely . | . . . . . . . . Salvage Created 5767 | . 475 255 1142 321 583 2991 . Parts 386 | . 34 20 101 27 14 190 . Haulers Intercepted 1 | . . . . . . 1 . Recyclers Shooed 2 | . 1 . . . . 1 . Parts Field Recycled . | . . . . . . . . Retrieved Matter . | . . . . . . . . Parts Self-Destructed . | . . . . . . . . Prevented . | . . . . . . . . Kills | -11 -10 -10 -9 -9 -9 -7 -7 ------- Run | Jun Mat Min Mat Sto Rec Fac Gar Combat Hostiles Destroyed 135 | . 12 10 35 11 1 66 . Guns 122 | . 12 10 35 11 1 53 . Cannons 2 | . . . . . . 2 . AOE 10 | . . . . . . 10 . Classes Destroyed 18 | . 5 . 3 1 2 7 . Worker 8 | . 1 . . . . 7 . Builder 7 | . . . . . 1 6 . Tunneler 2 | . . . 1 . . 1 . Hauler 1 | . . . . . . 1 . Recycler 12 | . . . . . 6 6 . Operator 4 | . 1 . 1 . . 2 . Watcher 13 | . 3 . 5 2 . 3 . Swarmer 28 | . 5 3 12 . . 8 . Grunt 56 | . 7 7 12 6 . 24 . Brawler 2 | . . . . . . 2 . Duelist 3 | . . . 1 1 . 1 . Protector 1 | . . . . 1 . . . Sentry 21 | . . . 10 3 1 7 . Demolisher 1 | . . . . . . 1 . Hunter 5 | . . . . . . 5 . Programmer 12 | . . . . . . 12 . Heavy 1 | . . . . . . 1 . Assembled 5 | . . . . . . 5 . Best Kill Streak 19 | . 3 2 7 2 5 19 . Combat Bots Only 7 | . 3 2 7 2 1 5 . Max Kills in Single Turn 6 | . 1 1 2 2 1 6 . Gunslinging 1 | . . . 1 1 . 1 . Exploded 3 | . . . . . . 3 . Melee . | . . . . . . . . Uniques/NPCs Destroyed . | . . . . . . . . Combat | -11 -10 -10 -9 -9 -9 -7 -7 -------- Run | Jun Mat Min Mat Sto Rec Fac Gar Damage Taken 5415 | . 662 501 903 54 74 3182 39 Core 4342 | . 541 401 717 40 60 2550 33 Absorbed by Shields 23 | . . . . 23 . . . Redirected to Core 3616 | . 406 327 584 40 47 2193 19 Regen/Repaired (Parts) 398 | . . . 136 4 6 252 . Core Remaining (%) 91 | 100 . 81 . . 94 . . Volleys Fired 353 | . 64 28 72 18 15 156 . Largest 4 | . 2 2 4 4 3 4 . Hottest 244 | . 85 85 167 244 162 147 . Shots Fired 1092 | . 126 57 224 72 45 568 . Gun 1065 | . 126 57 224 72 45 541 . Cannon 17 | . . . . . . 17 . Launcher 8 | . . . . . . 8 . Special 2 | . . . . . . 2 . Kinetic 753 | . 100 29 157 . 15 452 . Thermal 264 | . 26 28 67 72 30 41 . Explosive 8 | . . . . . . 8 . Electromagnetic 65 | . . . . . . 65 . Robot Hit Streak 66 | . 19 16 40 45 21 66 . Robot Miss Streak 6 | . 6 2 3 1 1 2 . Penetration Max 1 | . . . . . . 1 . Secondary Targets 25 | . 3 3 9 2 . 8 . Max Gunslinging Chain 2 | . 1 1 2 1 . 1 . Shots Hit Robots 804 | . 85 47 150 54 33 435 . Core Hits 321 | . 32 19 60 19 11 180 . Critical Kills 2 | . 2 . . . . . . Critical Parts Destroyed 6 | . 1 1 1 . . 3 . Critical Strikes 23 | . 4 2 4 2 1 10 . Burn 8 | . 1 1 3 2 1 . . Destroy 8 | . 3 1 1 . . 3 . Blast 7 | . . . . . . 7 . Melee Attacks . | . . . . . . . . Impact . | . . . . . . . . Slashing . | . . . . . . . . Piercing . | . . . . . . . . Sneak Attacks . | . . . . . . . . Combat Hostiles . | . . . . . . . . Follow-up Attacks . | . . . . . . . . Damage Inflicted 14264 | . 801 689 2251 942 528 9053 . Guns 12640 | . 801 687 2251 934 524 7443 . Cannons 121 | . . . . . . 121 . Explosions 1452 | . . . . . . 1452 . Melee . | . . . . . . . . Ramming 51 | . . 2 . 8 4 37 . Kinetic 8377 | . 551 306 1413 . 73 6034 . Thermal 4036 | . 250 381 838 934 451 1182 . Explosive 714 | . . . . . . 714 . Electromagnetic 1086 | . . . . . . 1086 . Impact . | . . . . . . . . Slashing . | . . . . . . . . Piercing . | . . . . . . . . Highest Corruption 6 | . 1 1 1 1 1 6 . Average Corruption 2 | . 1 1 1 1 1 3 . Corruption Purged 10 | . . . . . . 10 . Corruption Blocked . | . . . . . . . . Effects 130 | . 1 15 11 10 14 79 . Message Errors 36 | . 1 4 4 2 2 23 . Matter Fused 26 | . . 4 1 2 3 16 . Heat Flow Errors 20 | . . 3 1 2 4 10 . Energy Discharges 15 | . . 1 3 1 4 6 . Parts Fused 2 | . . . . . . 2 . Data Loss (minor) 18 | . . . 2 3 1 12 . Data Loss (major) 8 | . . 2 . . . 6 . Misfires 1 | . . 1 . . . . . Alerts 2 | . . . . . . 2 . Weapon Failures 2 | . . . . . . 2 . Overload Shots . | . . . . . . . . Overflow Damage 234 | . . . . . . 234 . Projectiles . | . . . . . . . . Explosions 234 | . . . . . . 234 . Melee . | . . . . . . . . Knockbacks . | . . . . . . . . Impact . | . . . . . . . . Kinetic . | . . . . . . . . Secondary . | . . . . . . . . Self-Inflicted Damage 191 | . . . . . . 191 . Shots 3 | . . . . . . 3 . Rammed 11 | . . 1 . 1 1 8 . Targets Rammed 11 | . . 1 . 1 1 8 . Kicked . | . . . . . . . . Crushed . | . . . . . . . . Highest Temperature 398 | . 324 275 255 398 287 363 . Average Temperature 86 | . 96 103 44 132 99 72 . Received Heat Transfer 1516 | . 276 270 228 28 18 684 12 Effects 8 | . 1 . . 3 1 3 . Shutdowns 2 | . . . . 1 . 1 . Energy Bleed 4 | . 1 . . . 1 2 . Interference 2 | . . . . 2 . . . Siege Activations . | . . . . . . . . Robots Corrupted 1 | . . . . . . 1 . Combat Hostiles 1 | . . . . . . 1 . Parts Fried 5 | . . . . 1 . 4 . Impact Corruptions . | . . . . . . . . Robots Melted . | . . . . . . . . Combat Hostiles . | . . . . . . . . Parts Melted 15 | . . 2 4 5 1 3 . Heat Transferred 8239 | . 666 962 2174 2257 1036 1144 . Parts Sabotaged . | . . . . . . . . Parts Stolen . | . . . . . . . . Parts Stripped . | . . . . . . . . Power Chain Reactions 1 | . . . . . . 1 . Missiles Intercepted . | . . . . . . . . Alert | -11 -10 -10 -9 -9 -9 -7 -7 ------- Run | Jun Mat Min Mat Sto Rec Fac Gar Peak Influence 1492 | . 232 130 320 739 288 1492 1044 Initial 1044 | . . . 19 38 288 . 1044 Average 324 | . 65 34 161 379 115 572 1044 Maximum Alert Level 4 | . 1 . 1 3 1 4 3 Low Security (%) 46 | 100 86 100 60 23 75 16 . Level 1 18 | . 13 . 39 21 24 12 . Level 2 19 | . . . . 52 . 34 . Level 3 13 | . . . . 2 . 32 100 Level 4 1 | . . . . . . 3 . Level 5 . | . . . . . . . . High Security . | . . . . . . . . Max Security . | . . . . . . . . Squads Dispatched 39 | . 3 . 4 7 . 25 . Investigation 8 | . 1 . 2 2 . 3 . Extermination 10 | . . . . . . 10 . Reinforcement 9 | . 2 . 2 3 . 2 . Assault 4 | . . . . 1 . 3 . Garrison 8 | . . . . 1 . 7 . Intercept . | . . . . . . . . Searches Triggered . | . . . . . . . . Construction Impeded 2 | . . . . 1 . 1 . Haulers Reinforced . | . . . . . . . . Active Scanning Responses . | . . . . . . . . Cargo Convoy Interrupts . | . . . . . . . . Stealth | -11 -10 -10 -9 -9 -9 -7 -7 --------- Run | Jun Mat Min Mat Sto Rec Fac Gar Distress Signals 11 | . 2 . 4 3 . 2 . Communications Jammed . | . . . . . . . . Distress Signals . | . . . . . . . . Times Spotted 206 | . 21 12 42 36 4 90 1 Peak Tracking Total 7 | . 4 3 6 5 1 7 1 Tactical Retreats 10 | . 2 1 . 3 . 4 . Traps | -11 -10 -10 -9 -9 -9 -7 -7 ------- Run | Jun Mat Min Mat Sto Rec Fac Gar Traps Triggered 10 | . 1 . 2 1 . 6 . Indirectly . | . . . . . . . . Trap Hack Attempts . | . . . . . . . . Triggered . | . . . . . . . . Disarmed . | . . . . . . . . Reprogrammed . | . . . . . . . . Reused . | . . . . . . . . Traps Extracted . | . . . . . . . . Installed . | . . . . . . . . Triggered . | . . . . . . . . Machines | -11 -10 -10 -9 -9 -9 -7 -7 ---------- Run | Jun Mat Min Mat Sto Rec Fac Gar Machines Disabled 16 | . . 1 1 2 . 12 . Max in Single Turn 5 | . . 1 1 . . 5 . Garrison Access 1 | . . . . 1 . . . Machines Repaired . | . . . . . . . . Machines Sabotaged . | . . . . . . . . Overloaded Fab Kills . | . . . . . . . . Hacking | -11 -10 -10 -9 -9 -9 -7 -7 --------- Run | Jun Mat Min Mat Sto Rec Fac Gar Machines Accessed 62 | . 8 . 12 5 12 25 . Terminals 39 | . 6 . 10 4 6 13 . Fabricators 4 | . . . . . . 4 . Repair Stations 5 | . . . 1 1 . 3 . Recycling Units 12 | . 2 . 1 . 6 3 . Scanalyzers 1 | . . . . . . 1 . Garrison Access 1 | . . . . . . 1 . Total Hacks 168 | . 22 . 51 20 28 47 . Successful 104 | . 13 . 33 14 20 24 . Failed 64 | . 9 . 18 6 8 23 . Catastrophic 10 | . 1 . 1 1 1 6 . Database Lockouts . | . . . . . . . . Manual 25 | . 4 . 11 2 3 5 . Terminals 127 | . 19 . 42 18 21 27 . Fabricators 8 | . . . . . . 8 . Repair Stations 14 | . . . 7 2 . 5 . Recycling Units 15 | . 3 . 2 . 7 3 . Scanalyzers 3 | . . . . . . 3 . Garrison Access 1 | . . . . . . 1 . Terminal Hacks 77 | . 11 . 27 12 14 13 . Record 26 | . 6 . 12 7 . 1 . Part Schematic 10 | . . . . 2 7 1 . Robot Schematic 3 | . . . . 1 1 1 . Robot Analysis 6 | . 1 . 2 1 2 . . Prototype ID Bank 9 | . 1 . 5 . 1 2 . Open DSF 4 | . . . . . . 4 . Branch Access Points 1 | . . . . 1 . . . Fabricator Index 2 | . . . . . 1 1 . Alert Level 6 | . . . 4 . 1 1 . Unreport Threat 8 | . 2 . 3 . 1 2 . Registered Components 1 | . . . 1 . . . . Zone Layout 1 | . 1 . . . . . . Fabricator Hacks 4 | . . . . . . 4 . Load Schematic 2 | . . . . . . 2 . Build 2 | . . . . . . 2 . Repair Station Hacks 9 | . . . 4 2 . 3 . Scan Component 5 | . . . 2 1 . 2 . Repair 4 | . . . 2 1 . 1 . Recycling Unit Hacks 11 | . 2 . 2 . 6 1 . Process 1 | . . . 1 . . . . Report Inventory 1 | . 1 . . . . . . Retrieve Matter 1 | . . . 1 . . . . Retrieve Components 8 | . 1 . . . 6 1 . Scanalyzer 2 | . . . . . . 2 . Insert Component 2 | . . . . . . 2 . Garrison Access Hacks 1 | . . . . . . 1 . Unlock Access 1 | . . . . . . 1 . Unauthorized Hacks . | . . . . . . . . Terminals . | . . . . . . . . Fabricators . | . . . . . . . . Repair Stations . | . . . . . . . . Recycling Units . | . . . . . . . . Scanalyzers . | . . . . . . . . Garrison Access . | . . . . . . . . Data Cores Recovered 4 | . . . 1 1 . 2 . Used 2 | . . . . . . 2 . Hacking Detections 43 | . 6 . 9 4 6 18 . Full Trace Events 10 | . 5 . 1 1 . 3 . Feedback Events 1 | . 1 . . . . . . Corruption 1 | . 1 . . . . . . Feedback Blocked . | . . . . . . . . Robot Schematics Acquired 3 | . . . . 1 1 1 . Robots Built . | . . . . . . . . Authchips . | . . . . . . . . Time . | . . . . . . . . Total Robot Build Rating . | . . . . . . . . Part Schematics Acquired 10 | . . . . 2 7 1 . Parts Built 2 | . . . . . . 2 . Authchips . | . . . . . . . . Time 109 | . . . . . . 109 . Total Part Build Rating 6 | . . . . . . 6 . Parts Repaired 4 | . . . 2 1 . 1 . Time 166 | . . . 64 26 . 76 . Parts Recycled . | . . . . . . . . Recycled Matter 228 | . . . 228 . . . . Retrieved Matter 228 | . . . 228 . . . . Retrieved Components 28 | . 9 . . . 12 7 . Parts Scanalyzed . | . . . . . . . . Part Schematics Acquired . | . . . . . . . . Parts Damaged . | . . . . . . . . Bothacking | -11 -10 -10 -9 -9 -9 -7 -7 ------------ Run | Jun Mat Min Mat Sto Rec Fac Gar Used RIF Installer . | . . . . . . . . Robots Hacked . | . . . . . . . . Non-combat . | . . . . . . . . Combat . | . . . . . . . . Robot Hacks Applied . | . . . . . . . . Relay Couplers Released 3 | . . . . 1 . 2 . Machine Destruction 1 | . . . . 1 . . . Programmers 2 | . . . . . . 2 . Fabnet Peak Effective % . | . . . . . . . . Robots Rewired . | . . . . . . . . Allies Hacked . | . . . . . . . . Hacks Repelled . | . . . . . . . . Allies | -11 -10 -10 -9 -9 -9 -7 -7 -------- Run | Jun Mat Min Mat Sto Rec Fac Gar Total Allies 12 | . . . . 12 . . . Largest Group 11 | . . . . 11 5 4 . Highest-Rated Group 158 | . . . . 158 103 40 . Highest-Rated Ally 100 | . . . . 100 63 16 . Total Orders 2 | . . . . 2 . . . ROAM 1 | . . . . 1 . . . FOLLOW 1 | . . . . 1 . . . Ally Attacks 120 | . . . . 88 14 18 . Total Damage 2091 | . . . . 1789 148 154 . Kills 28 | . . . . 22 3 3 . Allies Corrupted . | . . . . . . . . Allies Melted 1 | . . . . . . 1 . Intel | -11 -10 -10 -9 -9 -9 -7 -7 ------- Run | Jun Mat Min Mat Sto Rec Fac Gar Robot Analysis Total 6 | . 1 . 2 1 2 . . Derelict Logs Recovered 1 | . . 1 . . . . . Drone Launches . | . . . . . . . . Drone Recoveries . | . . . . . . . . Exploration | -11 -10 -10 -9 -9 -9 -7 -7 ------------- Run | Jun Mat Min Mat Sto Rec Fac Gar Turns Passed 14361 | 80 1355 1319 2643 1386 1665 5904 9 Spaces Moved 7275 | 49 713 687 1385 726 684 3024 7 Core 4 | 4 . . . . . . . Treads 3982 | 45 713 687 1385 726 426 . . Legs . | . . . . . . . . Wheels 1198 | . . . . . 258 933 7 Hover 2091 | . . . . . . 2091 . Flight . | . . . . . . . . Fastest Speed 50 | 50 160 160 160 160 138 125 125 Average Speed 162 | 151 160 160 160 160 196 157 125 Slowest Speed 240 | 160 160 160 160 160 240 197 125 Overloaded Moves . | . . . . . . . . Propulsion Burnouts . | . . . . . . . . Robots Hopped . | . . . . . . . . Cave-ins Triggered . | . . . . . . . . Exploration Rate (%) 66 | 3 96 99 96 75 99 57 3 Regions Visited 7 Branch Regions 3 Pre-discovered Areas 2 | . . 2 . . . . . Known Exits Taken 6 | . 1 1 1 1 1 1 . Unknown Exits Taken 1 | 1 . . . . . . . Scrap Searched 1 | . . 1 . . . . . Spaces Dug 42 | . . . . . . 42 . Terrain Destroyed 112 | . . . . . . 112 . Melee . | . . . . . . . . Projectile 2 | . . . . . . 2 . AOE 108 | . . . . . . 108 . Terrain Rammed . | . . . . . . . . Walls Destroyed . | . . . . . . . . Machines Disabled . | . . . . . . . . Actions | -11 -10 -10 -9 -9 -9 -7 -7 --------- Run | Jun Mat Min Mat Sto Rec Fac Gar Total 9121 | 53 822 851 1661 904 976 3847 7 Wait 1199 | . 25 101 117 143 268 545 . Move 7268 | 48 712 686 1384 725 683 3023 7 Hop . | . . . . . . . . Pick Up 16 | . . . . 2 . 14 . Fast Attach 40 | 5 3 1 23 4 1 3 . Attach 9 | . . . . . 1 8 . Detach . | . . . . . . . . Swap 15 | . 4 2 5 . . 4 . Drop 50 | . 5 2 21 2 7 13 . Fire 353 | . 64 28 72 18 15 156 . Melee . | . . . . . . . . Ram 8 | . . . . . . 8 . Kick . | . . . . . . . . Crush 3 | . . 1 . 1 1 . . Escape Stasis . | . . . . . . . . Rewire . | . . . . . . . . Trap . | . . . . . . . . Miscellaneous 160 | . 9 30 39 9 . 73 . Route ------- -11/Junkyard -10/Materials (discovered 5 exits: *Mat x3 / *Min x2) -10/Mines (discovered 3 exits: *Mat x2 / [*Exi]) -9/Materials (discovered 6 exits: *Mat x3 / *Min / *Sto x2) -9/Storage -9/Recycling -7/Factory (discovered 4 exits: [*Fac] / *Low x2 / Gar) -7/Garrison History --------- Turn | Location | Event 14 | -11/Junkyard | Upgraded with Propulsion slot (x1) 14 | -11/Junkyard | Upgraded with Weapon slot (x1) 16 | -11/Junkyard | Discovered new exit (range 16) 81 | -11/Junkyard | Entered Materials 81 | -10/Materials | Discovered new exit (range 7) 310 | -10/Materials | Build established: Mutant 544 | -10/Materials | Discovered new exit (range 16) 611 | -10/Materials | Identified exit to Materials 661 | -10/Materials | Discovered new exit (range 7) 670 | -10/Materials | Identified exit to Mines 963 | -10/Materials | Discovered exit to Materials (range 15) 1095 | -10/Materials | Build established: Scavenger-Mutant 1230 | -10/Materials | Reached level 2 1244 | -10/Materials | Discovered exit to Materials (range 8) 1436 | -10/Materials | Entered Mines 1624 | -10/Mines | Deemed a non-threat by the Exiles lab entrance 1624 | -10/Mines | Discovered new exit (range 5) 1776 | -10/Mines | Discovered exit to Materials (range 7) 1796 | -10/Mines | Joined a pair of Derelicts in attacking an 0b10 outpost 2058 | -10/Mines | Discovered exit to Materials (range 5) 2147 | -10/Mines | Build established: Mutant 2357 | -10/Mines | Reached level 3 2360 | -10/Mines | Upgraded with Utility slot (x1) 2429 | -10/Mines | Learned location of Storage (-9) 2691 | -10/Mines | Build established: Scavenger-Mutant 2755 | -10/Mines | Entered Materials 2757 | -9/Materials | Reached level 4 2775 | -9/Materials | Upgraded with Power slot (x1) 2775 | -9/Materials | Upgraded with Weapon slot (x1) 2937 | -9/Materials | Destroyed 7 combat bots 2986 | -9/Materials | Reached level 5 3192 | -9/Materials | Build established: Scavenger-Gunner 3518 | -9/Materials | Discovered new exit (range 14) 3554 | -9/Materials | Reached level 6 3629 | -9/Materials | Upgraded with Utility slot (x2) 3629 | -9/Materials | Upgraded with Weapon slot (x1) 3671 | -9/Materials | Identified exit to Mines 3853 | -9/Materials | Discovered new exit (range 16) 3887 | -9/Materials | Identified exit to Storage 3970 | -9/Materials | Build established: Scavenger-Skirmisher 4006 | -9/Materials | Reached level 7 4045 | -9/Materials | Discovered new exit (range 16) 4068 | -9/Materials | Identified exit to Materials 4263 | -9/Materials | Discovered exit to Materials (range 8) 4618 | -9/Materials | Discovered exit to Storage (range 9) 4866 | -9/Materials | Repaired Imp. Treads 4900 | -9/Materials | Repaired Imp. Treads 4982 | -9/Materials | Discovered exit to Materials (range 11) 5393 | -9/Materials | Build established: Skirmisher 5398 | -9/Materials | Entered Storage 5400 | -9/Storage | Reached level 8 5408 | -9/Storage | Met 01-MTF 5418 | -9/Storage | Upgraded with Utility slot (x1) 5481 | -9/Storage | Repaired Sensor Array 5642 | -9/Storage | Identified exit to Recycling 5716 | -9/Storage | Build established: Hacker-Tank 5723 | -9/Storage | Garrison activated, responded to threat 5774 | -9/Storage | Reached level 9 5954 | -9/Storage | Assisted by bots powering up and referring to "LRC-V3" 6246 | -9/Storage | Build established: Commander-Tank 6614 | -9/Storage | Reached level 10 6784 | -9/Storage | Entered Recycling 6784 | -9/Recycling | Accompanied by 5 allies (01-MTF) 6786 | -9/Recycling | Found Scrap Engine 6789 | -9/Recycling | 01-MTF left 7096 | -9/Recycling | Build established: Hacker-Tank 7133 | -9/Recycling | Upgraded with Utility slot (x1) 7387 | -9/Recycling | Discovered new exit (range 5) 7428 | -9/Recycling | Build established: Hacker-Skirmisher 7435 | -9/Recycling | Identified exit to Factory 8449 | -9/Recycling | Entered Factory 8449 | -7/Factory | Accompanied by 4 allies 8451 | -7/Factory | Reached level 11 8517 | -7/Factory | Discovered new exit (range 7) 8527 | -7/Factory | Identified exit to Lower Caves 9091 | -7/Factory | Repaired Broken Prc. Beam Rifle 9310 | -7/Factory | Build established: Hacker-Construct 9359 | -7/Factory | Reached level 12 9415 | -7/Factory | Core integrity fell below 50% 9893 | -7/Factory | Reached level 13 10248 | -7/Factory | Upgraded with Utility slot (x1) 10264 | -7/Factory | Garrison activated, responded to threat 10327 | -7/Factory | Core integrity fell below 20% 10899 | -7/Factory | Reached level 14 11164 | -7/Factory | Identified exit to Garrison 11429 | -7/Factory | Discovered exit to Lower Caves (range 8) 11595 | -7/Factory | Upgraded with Weapon slot (x1) 11812 | -7/Factory | Fabricated Minigun (x2) 12012 | -7/Factory | Discovered new exit (range 13) 12049 | -7/Factory | First assault squad dispatched 12348 | -7/Factory | Reached level 15 12521 | -7/Factory | Upgraded with Propulsion slot (x1) 13288 | -7/Factory | Garrison activated, responded to threat 14180 | -7/Factory | Reached level 16 14247 | -7/Factory | Upgraded with Propulsion slot (x1) 14293 | -7/Factory | Garrison activated, responded to threat 14353 | -7/Factory | Entered Garrison 14362 | -7/Garrison | Destroyed by Y-54 Guardian with Gatling Laser Last Messages --------------- 14225_ R-06 Scavenger collects Imp. Signal Interpreter. 14228_ K-01 Serf collects debris. 14247_ Upgraded: Propulsion Slot (+1) 14283_ ALERT: Rogue bot located, Programmers report to Factory Zone 1V. 14293_ Slug penetrates P-60 Hacker. 14293_ P-60 Hacker calls for garrison reinforcements. 14293_ ALERT: Activating Garrison Access F004. 14296_ Slug penetrates P-60 Hacker. 14300_ Destroyed Gravmag System. 14300_ P-60 Hacker destroyed. 14300_ Slug penetrates Door. 14309_ Slug penetrates Y-54 Guardian. 14315_ Imp. Heat Sink fried. 14315_ Y-54 Guardian destroyed. 14323_ Acquired 51 matter. 14327_ Acquired Target Analyzer. 14332_ Acquired 60 matter. 14333_ Acquired 41 matter. LOCATION=GARRISON GOAL=ESCAPE Map ----- +----------------------------------------------------+ | | | | | | | | | | | | | | | ?????????????????????????????????? | | ?????????????????????????????????? | | ?????????????????????????????????? | | ?????????????????????????????????? | | ?????????????????????????????????? | | ?????????????????????????????????? | | ?????????????????????????????????? | | ?????????????????????????????????? | | ?????????????????????????????????? | | ?????????????????????????????????? | | ?????????#####???????????????????? | | ?????????# #???????????????????? | | ?????????# #???????????????????? | | ?????????# #???????????????????? | | ?????????# #???????????????????? | | ??????##?# #???????????????????? | | ??????#Y## #???????????????????? | | ?????## # #???????????????????? | | ?????#T @ #???????????????????? | | ?????##"## #???????????????????? | | ?????????# #???????????????????? | | ?????????# #???????????????????? | | ?????????# ??????????????????? | | ?????????# ?????????????????? | | ?????????# ????????????????? | | ?????????#########???????????????? | | ?????????????????????????????????? | | ?????????????????????????????????? | | ?????????????????????????????????? | | ?????????????????????????????????? | | ?????????????????????????????????? | | ?????????????????????????????????? | | ?????????????????????????????????? | | ?????????????????????????????????? | | ?????????????????????????????????? | | ?????????????????????????????????? | | ?????????????????????????????????? | | ?????????????????????????????????? | | ?????????????????????????????????? | | ?????????????????????????????????? | | ?????????????????????????????????? | | ?????????????????????????????????? | | ?????????????????????????????????? | +----------------------------------------------------+ Best States ------------- Heat Dissipation 63 Energy Generation 35 Energy Capacity 467 Matter Stores 500 Matter Capacity 500 Sight Range 16 Robot Scan Range 35 Terrain Scan Density 10 ECM Strength 1 Cloak Strength 3 Armor Coverage 150 Resistance: KI 5 Resistance: TH 5 Resistance: EX 5 Evasion (%) 45 Recoil Reduction 2 Particle Charging 15 Offensive Hacking 15 Defensive Hacking 15 Item Schematics ----------------- Cooling System | -9/Storage | Hacked Trap Scanner | -9/Storage | Hacked Plasma Cutter | -9/Recycling | Hacked Imp. Titanium Leg | -9/Recycling | Hacked Com. Matter Pod | -9/Recycling | Hacked Imp. Hover Unit | -9/Recycling | Hacked Minigun | -9/Recycling | Hacked Terrain Scan Processor | -9/Recycling | Hacked Field Recycling Unit | -9/Recycling | Hacked Thermal Shield | -7/Factory | Hacked Robot Schematics ------------------ A-02 Transporter | -9/Storage | Hacked L-31 Rogue | -9/Recycling | Hacked R-06 Scavenger | -7/Factory | Hacked Fabricated ------------ Minigun | x2 | -7/Factory Alien Tech Used ----------------- None Achievements -------------- Gun Specialist Prolific Hacker Challenges ------------ None RPGLIKE | -11 -10 -10 -9 -9 -9 -7 -7 --------- Run | Jun Mat Min Mat Sto Rec Fac Gar Levels Raised 15 | . 1 1 4 3 . 6 . XP Earned 25959 | 3000 1605 1775 6200 4237 577 8362 203 XP Spent 24325 | 2980 1500 1520 4500 3000 1700 9125 . Upgrades 52 | 13 2 4 7 8 1 17 . Power Slot 1 | . . . 1 . . . . Propulsion Slot 3 | 1 . . . . . 2 . Utility Slot 6 | . . 1 2 1 1 1 . Weapon Slot 4 | 1 . . 2 . . 1 . Core Integrity 8 | 8 . . . . . . . Heat Dissipation 4 | . . 2 2 . . . . Mass Support 1 | . . . . . . 1 . Inventory Capacity 2 | . . . . 2 . . . Sensor Range 10 | . . . . . . 10 . Ranged Accuracy 8 | 3 2 1 . . . 2 . Hack Attack % 1 | . . . . 1 . . . Hack Defense % 1 | . . . . 1 . . . KI Resistance % 1 | . . . . 1 . . . TH Resistance % 1 | . . . . 1 . . . EX Resistance % 1 | . . . . 1 . . . Protomatter Created 1809 | . 77 126 444 257 . 905 . Integrity Restored 3400 | . 119 642 855 143 . 1641 . Core 3340 | . 115 642 855 87 . 1641 . Parts 60 | . 4 . . 56 . . . Protomatter Decayed 1323 | . 52 113 159 555 91 353 . Game ------ Seed VariableMicroArray Manual? 0 Play Time 01:49:12 Cumulative 22.5 hours Start 2023.09.18 @ 23:51:22 End 2023.09.19 @ 01:46:44 Sessions 1 Manual Loads 0 Difficulty Rogue Special Mode Winter2019/RPGLIKE Game No. 23 Rogue 23 Adventurer 0 Explorer 0 Win Type - Total 0 Types 0/0/0/0/0/0/0/0/0 Lore% 18 Gallery% 24 Achievement% 21 Wizard Run 0 Options --------- ASCII 0 Keyboard 0 Movement Mouse Keybinds 0 Fullscreen 2 Font 24/Terminus Map View 183x50 Tactical HUD 1 Map Filters NONE Filters NONE Steam 1 RUN: 44c9883a-89a0-498e-a410-e46713de4cd0